Workbook

Sheet Table rentabilité
B2: ETUDE RENTABILITE SOLUTIONS USAGE PRODUCTIF
B3: Pompe solaire_Bananeraie
B5: Dimmensionnement réel
B6: Dimmensionnement optimisé
B7: Dimmensionnement réel
B10: Cases à vérifier
B11: Cases à compléter
B12: Cases à laisser vides
B13: Cases calculées
B15: Caractéristiques techniques du Projet
B17: Usage Productif | C17: Rendement (m3/heure) | D17: Puissance (kW) | F17: Prix (FCFA) | G17: Energie consommée (KWh/j) | H17: Energie à produire (kWh/j) | I17: Fonctionnement optimal | K17: Coefficient déperdition (k)
D18: Projet | E18: Nominale | I18: heures par jour | J18: jours à l'année
B19: Pompe de surface (983,2Kg/m3) | C19: 380 | E19: 55 | F19: 5824300 | G19: =E19*I19 -> 330 | H19: =G19/K19 -> 412.5 | I19: 6 | J19: 365 | K19: 0.8
B25: Equipements facultatifs
B26: designation | C26: nombre | D26: prix
B27: cloture grillage | C27: 1 | D27: 2493750
B28: Genie civil (structures modules) | C28: 1 | D28: 3187500
B29: conditionneur d'energie + protection | C29: 1 | D29: 3252999
B30: accessoirs cablages + protection | C30: 1 | D30: 3128125
B31: ligne d'aspiration (PeHD) | C31: 1 | D31: 178000
B32: ligne de refoulement (PeHD) | C32: 1 | D32: 750000
B33: accessoirs pompe | C33: 1 | D33: 2231250
B35: Alimentation Solaire | C35: Puissance (kW) | D35: Prix (FCFA) | E35: Coefficient déperdition | F35: Tension (V) | H35: Batteries | I35: Capacité (Ampères/h) | J35: Prix (FCFA) | K35: Tension (V) | L35: Durée de vie* | M35: * en conditions optimales, annoncées constructeur
B36: Sharp ND-AC275 | C36: 0.275 | D36: 50000 | E36: 0.6 | F36: 24V | H36: Victron Energy Gel | I36: 220 | J36: 400000 | K36: 12 | L36: 10
B37: BlueSolar SPM-300-24 Monocristallin | C37: 0.3 | D37: 70000 | E37: 0.6 | F37: 24V | H37: Victron Energy Gel 2 | I37: 265 | K37: 12 | L37: 10
H38: Tension nécessaire système | I38: =IF(J38<0.5,12,IF(AND(J38>=0.5,J38<2),24,IF(J38>=2,48))) -> 48 | J38: =F83*INDEX(C:C,MATCH(F60,B:B,0)) -> 68.75
B40: Conditionneur | C40: kVa | D40: Prix (FCFA) | H40: Régulateur | J40: Prix (FCFA) | K40: Tension (V)
D41: 3252999 | H41: BlueSolar 150V 35A de Victron Energy | J41: 220000 | K41: 12V/24V/48V
H42: …
B44: Irradiation Solaire
B45: Month | C45: Jan | D45: Feb | E45: Mar | F45: Apr | G45: May | H45: Jun | I45: Jul | J45: Aug | K45: Sep | L45: Oct | M45: Nov | N45: Dec | O45: Year
B46: H(15)* | C46: 5.12 | D46: 5.75 | E46: 6.37 | F46: 6.61 | G46: 6.34 | H46: 6.05 | I46: 6.26 | J46: 5.51 | K46: 6.03 | L46: 5.81 | M46: 5.226 | N46: 5.03 | O46: =IF('Table rentabilité'!G72="x",MAX(C46:N46),IF('Table rentabilité'!G73="x",MIN(C46:N46),IF('Table rentabilité'!G74="x",AVERAGE(C46:N46),"erreur"))) -> 5.842166667
B48: Électricité du réseau | D48: 1ère Tranche | E48: 2ème Tranche | F48: 3ème Tranche | J48: 1ère Tranche | K48: 2ème Tranche | L48: 3ème Tranche | M48: Total
B49: UP-Petite Puissance | C49: Tranche (KWh) | D49: 50 | E49: 500 | F49: ∞ | H49: UP-Petite Puissance | I49: Energie par Tranche | J49: =(F77*30)-SUM(K49:L49) -> 50 | K49: =IF((F77*30)>D49,(F77*30)-D49-L49,0) -> 450 | L49: =IF((F77*30)>E49,(F77*30)-E49,0) -> 9400 | M49: =SUM(J49:L49) -> 9900
C50: Prix (KWh) | D50: 128.85 | E50: 135.68 | F50: 147.68 | I50: Coût (FCFA) | J50: =J49*D50 -> 6442.5 | K50: =K49*E50 -> 61056 | L50: =L49*F50 -> 1388192 | M50: =SUM(J50:L50) -> 1455690.5
B51: UP-Moyenne Puissance | C51: Tranche | D51: 100 | E51: 500 | F51: ∞ | H51: UP-Moyenne Puissance | I51: Energie par Tranche | J51: =(F77*30)-SUM(K51:L51) -> 100 | K51: =IF((F77*30)>D51,(F77*30)-D51-L51,0) -> 400 | L51: =IF((F77*30)>E51,(F77*30)-E51,0) -> 9400 | M51: 9900
C52: Prix (KWh) | D52: 129.81 | E52: 136.53 | F52: 149.24 | I52: Coût (FCFA) | J52: =J51*D52 -> 12981 | K52: =K51*E52 -> 54612 | L52: 1402856 | M52: 1470449
B54: Choix de dimensionnement du projet
B56: Production min. souhaitée (m3 d'eau/jour) | F56: =C19*I19 -> 2280 | G56: m3
B57: Temps de fonctionnement (heures) | F57: =I19 -> 6
B59: Choix de la pompes | F59: Pompe de surface (983,2Kg/m3)
B60: Choix de l'alimentation solaire | F60: Sharp ND-AC275
B61: Choix du système de stokage | F61: Victron Energy Gel
B62: Choix du conditionneur (onduleur) | F62: Vitron Energy Phoenix
B63: Choix du régulateur
B64: Choix décortiqueuse solaire
B65: Equivalent Réseau | F65: =IF(M50<M52,B49,B51) -> UP-Petite Puissance
B66: Raccordement nécessaire (MT, BT) et distance | F66: MT | G66: 500
B67: Montant Frais HTA et KG câble | F67: 4462549 | G67: 30
B69: Autonomie nécessaires au projet (jours) | F69: 1
B70: Profondeur décharge batteries | F70: 0.7
B72: Choix du cas pour dimensionnement solaire | F72: best case
F73: worst case
F74: average | G74: x
B76: Puissance equipement total majoré | F76: =E19*1.2 -> 66
B77: Energie journalière consommée (KWh) | F77: =G19+G20+G22 -> 330 | G77: KWh
B78: Puissance crête projet (KW) | F78: =(INDEX(H:H,MATCH(F59,B:B,0))/I19)*F89 -> 68.75
B79: Capacité totale système stockage (Ampères/heure) | F79: =(G19+G20+G21)*1000*(F69)/(F70*I38) -> 9821.428571
B81: Nb de pompes | F81: =ROUNDUP(F56/(C19*I19),0) -> 1 | G81: unités
F82: =IF(F64<>"",1,0) -> 0 | G82: unités
B83: Nb de panneaux solaires | F83: =ROUNDUP(F78/INDEX(C:C,MATCH(F60,B:B,0)),0) -> 250 | G83: unités | H83: =ARRONDI.SUP(F77/INDEX(C:C;EQUIV(F61;B:B;0));0)
B84: Nb de batteries en série | F84: =ROUNDUP(I38/INDEX(K:K,MATCH(F61,H:H,0)),0) -> 4 | G84: unités | H84: =ARRONDI.SUP(I37/INDEX(K:K;EQUIV(F62;H:H;0));0)
B85: Nb de batteries en dérivation | F85: 2 | G85: unités | H85: =ARRONDI.SUP(F78/INDEX(I:I;EQUIV(F62;H:H;0));0)
B86: Nb de batteries total | F86: =F84*F85 -> 8 | G86: unités
B87: Durée de vie attendue de la batterie | F87: =INDEX(L:L,MATCH(F61,H:H,0))*(130%-F70) -> 6 | G87: ans
B88: Nb conditionneur | F88: =IF(OR(I38=24,I38=12),1,2) -> 2 | G88: unités | H88: =SI(OU(I37=24;I37=12);1;2)
B89: Nb régulateurs | F89: 1 | G89: unités
B91: Ratio de fonctionnement | F91: 0.9
B92: Employés nécessaires pour fonctionnement | F92: 1 | G92: personnes
B93: Extrant annuel attendu en eau | F93: =INDEX(C:C,MATCH($F$59,B:B,0))*INDEX(J:J,MATCH($F$59,B:B,0))*F81*F91 -> 124830 | G93: m3
B94: Extrant annuel attendu en bananes | F94: =315 -> 315 | G94: Tonnes
B96: Calcul de charges variables et fixes
B98: CHARGES VARIABLES D'EXPLOITATION
B99: Désignation | C99: Quantité (parcelles) | E99: Prix unitaire | F99: Montant total/an | G99: Montant total/mois | I99: évolution annuelle charges d'exploitation | L99: 0.01
B100: engrais (sacs de 50 kg) | C100: =35.1*4 -> 140.4 | E100: 9500 | F100: =E100*C100*L100 -> 866970 | G100: =F100/12 -> 72247.5 | I100: Part charges imputables au business de l'huile (Baobab)* | L100: 0.65
B101: salaires | C101: 1 | E101: 630000 | F101: =E101*C101 -> 630000 | G101: =F101/12 -> 52500 | I101: * La création de Bouye sera gérée par RaS, les charges sont donc réparties
B102: materiels vegetales | F102: =E102*C102 -> 0 | G102: =F102/12 -> 0 | I102: entre les 2 projets selon le poids de chaque transformation dans le revenu généré
B103: Entretien système d'irrigation | F103: =E103*C103 -> 0 | G103: 0
B104: fumier (tonne) | C104: 35 | E104: 65000 | F104: =E104*C104 -> 2275000 | G104: 189583.3333
F105: =E105*C105*12 -> 0 | G105: 0
F106: =E106*C106*12 -> 0 | G106: 0 | I106: Avantage coût électricité PV vs. Réseau | K106: Sur 1 an | L106: =(MIN(M50,M52)*12)-G131 -> 14918947.31
F107: =E107*C107*12 -> 0 | G107: 0
B108: TOTAL (F CFA) | F108: =SUM(F100:F107) -> 3771970 | G108: =SUM(G100:G107) -> 314330.8333 | K108: Sur 5 ans | L108: =(MIN(M50,M52)*12*5)-(G131*5) -> 74594736.57
K109: Sur 9 ans | L109: =(MIN(M50,M52)*12*9)-(G131*9) -> 134270525.8
B110: INVESTISSEMENTS
B111: Désignation | C111: Quantité | D111: Prix unitaire TTC | E111: Durée de vie (an) | F111: Montant Total TTC | G111: Amortissement annuel
B112: Pompe solaire (55 KW) | C112: =IF($B$5=INDEX($B$6:$B$7,1,1),F81,'investissement réel'!C4) -> 1 | D112: =IF($B$5=INDEX($B$6:$B$7,1,1),INDEX(F:F,MATCH(F59,B:B,0)),'investissement réel'!D4) -> 5824300 | E112: 10 | F112: =C112*D112 -> 5824300 | G112: =IFERROR(F112/E112,0) -> 582430
B113: accessoirs pompe | C113: =IF($B$5=INDEX($B$6:$B$7,1,1),C33,'investissement réel'!C5) -> 1 | D113: =IF($B$5=INDEX($B$6:$B$7,1,1),D33,'investissement réel'!D5) -> 2231250 | E113: 10 | F113: =C113*D113 -> 2231250 | G113: 223125
B114: Champs solaire (81,9 KWc) | C114: =IF($B$5=INDEX($B$6:$B$7,1,1),F83,'investissement réel'!C6) -> 1 | D114: =IF($B$5=INDEX($B$6:$B$7,1,1),INDEX(D:D,MATCH(F60,B:B,0)),'investissement réel'!D6) -> 17541678 | E114: 25 | F114: =C114*D114 -> 17541678 | G114: =IFERROR(F114/E114,0) -> 701667.12
B115: cloture grillage | C115: =IF($B$5=INDEX($B$6:$B$7,1,1),C27,'investissement réel'!C7) -> 1 | D115: =IF($B$5=INDEX($B$6:$B$7,1,1),D27,'investissement réel'!D7) -> 2493750 | E115: 10 | F115: =C115*D115 -> 2493750 | G115: =IFERROR(F115/E115,0) -> 249375
B116: Genie civil (structures modules) | C116: =IF($B$5=INDEX($B$6:$B$7,1,1),C28,'investissement réel'!C8) -> 1 | D116: =IF($B$5=INDEX($B$6:$B$7,1,1),D28,'investissement réel'!D8) -> 3187500 | E116: 15 | F116: 3187500 | G116: 212500
B117: conditionneur d'energie + protection | C117: =IF($B$5=INDEX($B$6:$B$7,1,1),F88,'investissement réel'!C9) -> 1 | D117: =IF($B$5=INDEX($B$6:$B$7,1,1),D41,'investissement réel'!D9) -> 3252999 | E117: 10 | F117: 3252999 | G117: 325299.9
B118: accessoirs cablages + protection | C118: =IF($B$5=INDEX($B$6:$B$7,1,1),C30,'investissement réel'!C10) -> 1 | D118: =IF($B$5=INDEX($B$6:$B$7,1,1),D30,'investissement réel'!D10) -> 3128125 | E118: 15 | F118: 3128125 | G118: 208541.6667
B119: ligne d'aspiration (PeHD) | C119: =IF($B$5=INDEX($B$6:$B$7,1,1),C31,'investissement réel'!C11) -> 1 | D119: =IF($B$5=INDEX($B$6:$B$7,1,1),D31,'investissement réel'!D11) -> 178000 | E119: 20 | F119: 178000 | G119: 8900
B120: ligne de refoulement (PeHD) | C120: =IF($B$5=INDEX($B$6:$B$7,1,1),C32,'investissement réel'!C12) -> 1 | D120: =IF($B$5=INDEX($B$6:$B$7,1,1),D32,'investissement réel'!D12) -> 750000 | E120: 20 | F120: 750000 | G120: 37500
F121: 0 | G121: 0
F122: 0 | G122: 0
F123: 0 | G123: 0
F124: 0 | G124: 0
F126: 0 | G126: 0
F127: 0 | G127: 0
F128: 0 | G128: 0
E129: 0 | F129: 0 | G129: 0
E130: 0 | F130: 0 | G130: 0
B131: TOTAL (F CFA) | F131: =SUM(F112:F130) -> 38587602 | G131: =SUM(G112:G130) -> 2549338.687 | H131: =G131/12 -> 212444.8906
B133: Calcul des recettes d'exploitation
B135: RECETTES D'EXPLOITATION
B136: Désignation | C136: Quantité (parcelle) | E136: Prix unitaire | F136: Recettes annuelles | G136: Recettes mensuelles | J136: évolution annuelle recettes d'exploitation | K136: 0.1
B137: Cotisations (année 1 - 5 H) | C137: =19.5 -> 19.5 | E137: 502341.25 | F137: =C137*E137 -> 9795654.375 | G137: =F137/12 -> 816304.5312
B138: Cotisations (année 2 - 9 H) | C138: 35.1 | E138: 502341.25 | F138: =C138*E138 -> 17632177.88 | G138: =F138/12 -> 1469348.156
F139: =C139*E139 -> 0 | G139: 0
B140: TOTAL (F CFA) | F140: =F138 -> 17632177.88 | G140: =G138 -> 1469348.156
B142: Ressources et Financement des investissements
B144: BFR (Besoin en fonds de roulement)
B145: Type de tiers | C145: Client/fournisseur | D145: Délais de paiement / stocks (jours) | E145: Part des achats/ventes
B154: Créances clients | C154: =((D149*F140/365*E149)+(D150*F140/365*E150)) -> 0
B155: Crédit fournisseurs | C155: =((D146*F108*E146/365)+(D147*F108*E147/365)+(D148*F108*E148/365))*-1 -> 0
B156: Impact Stocks consommable | C156: =F100*D151/365 -> 0
B157: Impact Stocks produits finis | C157: =F137*D152/365 -> 0
B158: BFR | C158: =SUM(C154:C157) -> 0 | D158: F CFA
B161: SCHÉMA DE FINANCEMENT | F161: ECHEANCIER DE REMBOURSEMENT
B162: Désignation | C162: Part | D162: Montant total TTC | F162: Année | G162: Capital | H162: Intérêts | I162: Reste | J162: Annuité | K162: mensualité
B163: Investissements | D163: =F131 -> 38587602 | F163: =IF(D170>10,"nb an insuffisant",IF(D170>=1,1,"-")) -> 1 | G163: =SUMIFS('Remboursement Mensualités'!C$14:C$133,'Remboursement Mensualités'!$F$14:$F$133,'Table rentabilité'!$F163) -> 8691012.925 | H163: =SUMIFS('Remboursement Mensualités'!D$14:D$133,'Remboursement Mensualités'!$F$14:$F$133,'Table rentabilité'!$F163) -> 2351188.984 | I163: =SUMIFS('Remboursement Mensualités'!E$14:E$133,'Remboursement Mensualités'!$F$14:$F$133,'Table rentabilité'!$F163) -> 407143533.8 | J163: =SUMIFS('Remboursement Mensualités'!B$14:B$133,'Remboursement Mensualités'!$F$14:$F$133,'Table rentabilité'!$F163) -> 11042201.91 | K163: =J163/12 -> 920183.4925
B164: Besoin en fonds de roulement | D164: =C158 -> 0 | F164: =IF(D170>10,"nb an insuffisant",IF(D170>=2,2,"-")) -> 2 | G164: =SUMIFS('Remboursement Mensualités'!C$14:C$133,'Remboursement Mensualités'!$F$14:$F$133,'Table rentabilité'!$F164) -> 9299383.83 | H164: =SUMIFS('Remboursement Mensualités'!D$14:D$133,'Remboursement Mensualités'!$F$14:$F$133,'Table rentabilité'!$F164) -> 1742818.08 | I164: =SUMIFS('Remboursement Mensualités'!E$14:E$133,'Remboursement Mensualités'!$F$14:$F$133,'Table rentabilité'!$F164) -> 298937840.4 | J164: =SUMIFS('Remboursement Mensualités'!B$14:B$133,'Remboursement Mensualités'!$F$14:$F$133,'Table rentabilité'!$F164) -> 11042201.91 | K164: =J164/12 -> 920183.4925
B165: COÛT TOTAL (F CFA) | D165: =SUM(D163:D164) -> 38587602 | F165: =IF(D170>10,"nb an insuffisant",IF(D170>=3,3,"-")) -> 3 | G165: =SUMIFS('Remboursement Mensualités'!C$14:C$133,'Remboursement Mensualités'!$F$14:$F$133,'Table rentabilité'!$F165) -> 9950340.698 | H165: =SUMIFS('Remboursement Mensualités'!D$14:D$133,'Remboursement Mensualités'!$F$14:$F$133,'Table rentabilité'!$F165) -> 1091861.212 | I165: =SUMIFS('Remboursement Mensualités'!E$14:E$133,'Remboursement Mensualités'!$F$14:$F$133,'Table rentabilité'!$F165) -> 183157748.5 | J165: =SUMIFS('Remboursement Mensualités'!B$14:B$133,'Remboursement Mensualités'!$F$14:$F$133,'Table rentabilité'!$F165) -> 11042201.91 | K165: 920183.4925
B166: Apport personnel | C166: 0 | D166: =D165*C166 -> 0 | F166: =IF(D170>10,"nb an insuffisant",IF(D170>=4,4,"-")) -> 4 | G166: =SUMIFS('Remboursement Mensualités'!C$14:C$133,'Remboursement Mensualités'!$F$14:$F$133,'Table rentabilité'!$F166) -> 10646864.55 | H166: =SUMIFS('Remboursement Mensualités'!D$14:D$133,'Remboursement Mensualités'!$F$14:$F$133,'Table rentabilité'!$F166) -> 395337.3627 | I166: =SUMIFS('Remboursement Mensualités'!E$14:E$133,'Remboursement Mensualités'!$F$14:$F$133,'Table rentabilité'!$F166) -> 59273050.08 | J166: =SUMIFS('Remboursement Mensualités'!B$14:B$133,'Remboursement Mensualités'!$F$14:$F$133,'Table rentabilité'!$F166) -> 11042201.91 | K166: 920183.4925
B167: Subvention | C167: 0 | D167: =C167*D165 -> 0 | F167: =IF(D170>10,"nb an insuffisant",IF(D170>=5,5,"-")) -> - | G167: =SUMIFS('Remboursement Mensualités'!C$14:C$133,'Remboursement Mensualités'!$F$14:$F$133,'Table rentabilité'!$F167) -> 0 | H167: =SUMIFS('Remboursement Mensualités'!D$14:D$133,'Remboursement Mensualités'!$F$14:$F$133,'Table rentabilité'!$F167) -> 0 | I167: =SUMIFS('Remboursement Mensualités'!E$14:E$133,'Remboursement Mensualités'!$F$14:$F$133,'Table rentabilité'!$F167) -> 0 | J167: =SUMIFS('Remboursement Mensualités'!B$14:B$133,'Remboursement Mensualités'!$F$14:$F$133,'Table rentabilité'!$F167) -> 0 | K167: 0
B168: Emprunt | C168: =100%-(C167+C166) -> 1 | D168: =D165*C168 -> 38587602 | F168: =IF(D170>10,"nb an insuffisant",IF(D170>=6,6,"-")) -> - | G168: =SUMIFS('Remboursement Mensualités'!C$14:C$133,'Remboursement Mensualités'!$F$14:$F$133,'Table rentabilité'!$F168) -> 0 | H168: =SUMIFS('Remboursement Mensualités'!D$14:D$133,'Remboursement Mensualités'!$F$14:$F$133,'Table rentabilité'!$F168) -> 0 | I168: =SUMIFS('Remboursement Mensualités'!E$14:E$133,'Remboursement Mensualités'!$F$14:$F$133,'Table rentabilité'!$F168) -> 0 | J168: =SUMIFS('Remboursement Mensualités'!B$14:B$133,'Remboursement Mensualités'!$F$14:$F$133,'Table rentabilité'!$F168) -> 0 | K168: =SUMIFS('Remboursement Mensualités'!C$14:C$133,'Remboursement Mensualités'!$F$14:$F$133,'Table rentabilité'!$F168) -> 0
B169: Taux de l'emprunt | D169: 0.07 | F169: =IF(D170>10,"nb an insuffisant",IF(D170>=7,7,"-")) -> - | G169: =SUMIFS('Remboursement Mensualités'!C$14:C$133,'Remboursement Mensualités'!$F$14:$F$133,'Table rentabilité'!$F169) -> 0 | H169: =SUMIFS('Remboursement Mensualités'!D$14:D$133,'Remboursement Mensualités'!$F$14:$F$133,'Table rentabilité'!$F169) -> 0 | I169: =SUMIFS('Remboursement Mensualités'!E$14:E$133,'Remboursement Mensualités'!$F$14:$F$133,'Table rentabilité'!$F169) -> 0 | J169: =SUMIFS('Remboursement Mensualités'!B$14:B$133,'Remboursement Mensualités'!$F$14:$F$133,'Table rentabilité'!$F169) -> 0 | K169: =SUMIFS('Remboursement Mensualités'!C$14:C$133,'Remboursement Mensualités'!$F$14:$F$133,'Table rentabilité'!$F169) -> 0
B170: Remboursement de l'emprunt (années) | D170: 4 | F170: =IF(D170>10,"nb an insuffisant",IF(D170>=8,8,"-")) -> - | G170: =SUMIFS('Remboursement Mensualités'!C$14:C$133,'Remboursement Mensualités'!$F$14:$F$133,'Table rentabilité'!$F170) -> 0 | H170: =SUMIFS('Remboursement Mensualités'!D$14:D$133,'Remboursement Mensualités'!$F$14:$F$133,'Table rentabilité'!$F170) -> 0 | I170: =SUMIFS('Remboursement Mensualités'!E$14:E$133,'Remboursement Mensualités'!$F$14:$F$133,'Table rentabilité'!$F170) -> 0 | J170: =SUMIFS('Remboursement Mensualités'!B$14:B$133,'Remboursement Mensualités'!$F$14:$F$133,'Table rentabilité'!$F170) -> 0 | K170: =SUMIFS('Remboursement Mensualités'!C$14:C$133,'Remboursement Mensualités'!$F$14:$F$133,'Table rentabilité'!$F170) -> 0
F171: =IF(D170>10,"nb an insuffisant",IF(D170>=9,9,"-")) -> - | G171: =SUMIFS('Remboursement Mensualités'!C$14:C$133,'Remboursement Mensualités'!$F$14:$F$133,'Table rentabilité'!$F171) -> 0 | H171: =SUMIFS('Remboursement Mensualités'!D$14:D$133,'Remboursement Mensualités'!$F$14:$F$133,'Table rentabilité'!$F171) -> 0 | I171: =SUMIFS('Remboursement Mensualités'!E$14:E$133,'Remboursement Mensualités'!$F$14:$F$133,'Table rentabilité'!$F171) -> 0 | J171: =SUMIFS('Remboursement Mensualités'!B$14:B$133,'Remboursement Mensualités'!$F$14:$F$133,'Table rentabilité'!$F171) -> 0 | K171: =SUMIFS('Remboursement Mensualités'!C$14:C$133,'Remboursement Mensualités'!$F$14:$F$133,'Table rentabilité'!$F171) -> 0
F172: =IF(D170>10,"nb an insuffisant",IF(D170>=10,"Année 10","-")) -> - | G172: =SUMIFS('Remboursement Mensualités'!C$14:C$133,'Remboursement Mensualités'!$F$14:$F$133,'Table rentabilité'!$F172) -> 0 | H172: =SUMIFS('Remboursement Mensualités'!D$14:D$133,'Remboursement Mensualités'!$F$14:$F$133,'Table rentabilité'!$F172) -> 0 | I172: =SUMIFS('Remboursement Mensualités'!E$14:E$133,'Remboursement Mensualités'!$F$14:$F$133,'Table rentabilité'!$F172) -> 0 | J172: =SUMIFS('Remboursement Mensualités'!B$14:B$133,'Remboursement Mensualités'!$F$14:$F$133,'Table rentabilité'!$F172) -> 0 | K172: =SUMIFS('Remboursement Mensualités'!C$14:C$133,'Remboursement Mensualités'!$F$14:$F$133,'Table rentabilité'!$F172) -> 0
F173: TOTAL | G173: =SUM(G163:G172) -> 38587602 | H173: =SUM(H163:H172) -> 5581205.639 | I173: =SUM(I163:I172) -> 948512172.8 | J173: =SUM(J163:J172) -> 44168807.64 | K173: =SUM(K163:K172) -> 3680733.97
B176: Ressources et Financement des investissements
B178: RESULTAT BRUT D'EXPLOITATION (EBE)
B179: Désignation / Durée (années) | C179: 0 | D179: 1 | E179: 2 | F179: 3 | G179: 4 | H179: 5 | I179: 6 | J179: 7 | K179: 8 | L179: 9 | M179: Total
B180: Recettes | D180: =F138 -> 17632177.88 | E180: =$D$180+(($F138-$F137)*0.25*D179)+($K$136*D180) -> 21354526.54 | F180: =$D$180+(($F138-$F137)*0.25*E179)+($K$136*E180) -> 23685892.28 | G180: =$D$180+(($F138-$F137)*0.25*F179)+($K$136*F180) -> 25878159.73 | H180: 28056517.35 | I180: =H180+($K$136*H180) -> 30862169.08 | J180: 33948385.99 | K180: 37343224.59 | L180: 41077547.05 | M180: =SUM(C180:L180) -> 259838600.5
B181: Dépenses | D181: =F108 -> 3771970 | E181: =D181+(D181*$L$99) -> 3809689.7 | F181: =E181+(E181*$L$99) -> 3847786.597 | G181: =F181+(F181*$L$99) -> 3886264.463 | H181: 3925127.108 | I181: 3964378.379 | J181: 4004022.162 | K181: 4044062.384 | L181: 4084503.008 | M181: =SUM(C181:L181) -> 35337803.8
B182: Amortissements | C182: 0 | D182: =$G$131 -> 2549338.687 | E182: =$G$131 -> 2549338.687 | F182: 2549338.687 | G182: 2549338.687 | H182: 2549338.687 | I182: 2549338.687 | J182: 2549338.687 | K182: 2549338.687 | L182: 2549338.687 | M182: 22944048.18
B183: Remboursement emprunt | C183: 0 | D183: =IFERROR(INDEX($J$163:$J$172,MATCH(D179,$F$163:$F$172,0)),0) -> 11042201.91 | E183: =IFERROR(INDEX($J$163:$J$172,MATCH(E179,$F$163:$F$172,0)),0) -> 11042201.91 | F183: 11042201.91 | G183: 11042201.91 | H183: 0 | I183: 0 | J183: 0 | K183: 0 | L183: 0 | M183: 44168807.64
B184: Bénéfice avant impôts | C184: 0 | D184: =D180-SUM(D181:D183) -> 268667.2787 | E184: =E180-SUM(E181:E183) -> 3953296.241 | F184: 6246565.085 | G184: 8400354.669 | H184: 21582051.55 | I184: 24348452.02 | J184: 27395025.14 | K184: 30749823.52 | L184: 34443705.35 | M184: 157387940.9
B185: Impôts sur le bénéfice | C185: 0 | D185: =IF(D184<0,0,0.3*D184) -> 80600.18361 | E185: =IF(E184<0,0,0.3*E184) -> 1185988.872 | F185: 1873969.526 | G185: 2520106.401 | H185: 6474615.466 | I185: 7304535.605 | J185: 8218507.543 | K185: 9224947.056 | L185: 10333111.61 | M185: 47216382.26
B186: Bénéfice après impôts | C186: 0 | D186: =D184-D185 -> 188067.0951 | E186: =E184-E185 -> 2767307.369 | F186: 4372595.56 | G186: 5880248.268 | H186: 15107436.09 | I186: 17043916.41 | J186: 19176517.6 | K186: 21524876.46 | L186: 24110593.75 | M186: 110171558.6
B187: Trésorerie | C187: =C180-C181 -> 0 | D187: =C187+D186 -> 188067.0951 | E187: =D187+E186 -> 2955374.464 | F187: =E187+F186 -> 7327970.024 | G187: =F187+G186 -> 13208218.29 | H187: =G187+H186 -> 28315654.38 | I187: 45359570.79 | J187: 64536088.39 | K187: 86060964.85 | L187: 110171558.6 | M187: 358123466.9
B188: Cash Flows | C188: 0 | D188: =D186+D183-($H$173/$D$170) -> 9834967.595 | E188: =E186+E183-($H$173/$D$170) -> 12414207.87 | F188: 14019496.06 | G188: 15527148.77 | H188: 13712134.68 | I188: 15648615 | J188: 17781216.19 | K188: 20129575.05 | L188: 22715292.34 | M188: 141782653.6
B189: Cash Flows cumulés | C189: =-C181 -> 0 | D189: =C189+D188 -> 9834967.595 | E189: =D189+E188 -> 22249175.46 | F189: =E189+F188 -> 36268671.52 | G189: 51795820.29 | H189: 65507954.97 | I189: 81156569.97 | J189: 98937786.16 | K189: 119067361.2 | L189: 141782653.6 | M189: 626600960.7
B192: Indicateurs économiques
B194: VAN | C194: =NPV(F194,IF(D179<=H194,D188,0),IF(E179<=H194,E188,0),IF(F179<=H194,F188,0),IF(G179<=H194,G188,0),IF(H179<=H194,H188,0),IF(I179<=H194,I188,0),IF(J179<=H194,J188,0),IF(K179<=H194,K188,0),IF(L179<=H194,L188,0))-D163 -> 70248678.68 | D194: FCFA | E194: Taux d'actualisation | F194: 0.05 | G194: Durée VAN (ans) | H194: 9 | N194: =-D163+IF(H194>=D179,(D186+D183-H173/D170)*((1+F194)^-1),0)+IF(H194>=E179,(E186+E183-H173/D170)*((1+F194)^-2),0)+IF(H194>=F179,(F186+F183-H173/D170)*((1+F194)^-3),0)+IF(H194>=G179,(G186+G183-H173/D170)*((1+F194)^-4),0)+IF(H194>=H179,(H186+H183-H173/D170)*((1+F194)^-5),0)+IF(H194>=I179,(I186+I183-H173/D170)*((1+F194)^-6),0)+IF(H194>=J179,(J186+J183-H173/D170)*((1+F194)^-7),0)+IF(H194>=K179,(K186+K183-H173/D170)*((1+F194)^-8),0)+IF(H194>=L179,(L186+L183-H173/D170)*((1+F194)^-9),0) -> 70248678.68 | O194: calcul VAN
B195: TRI | C195: =IRR(N195:W195) -> 0.3215749245 | N195: =-D163 -> -38587602 | O195: =IF(D179<=H194,D188,0) -> 9834967.595 | P195: =IF(E179<=H194,E188,0) -> 12414207.87 | Q195: =IF(F179<=H194,F188,0) -> 14019496.06 | R195: =IF(G179<=H194,G188,0) -> 15527148.77 | S195: =IF(H179<=H194,H188,0) -> 13712134.68 | T195: =IF(I179<=H194,I188,0) -> 15648615 | U195: =IF(J179<=H194,J188,0) -> 17781216.19 | V195: =IF(K179<=H194,K188,0) -> 20129575.05 | W195: =IF(L179<=H194,L188,0) -> 22715292.34
B196: RSI | C196: =SUM(O195:W195)/D163 -> 3.674305896 | D196: ="Pour 1000 CFA investis, on récupère "&ROUND(N196,0)&" CFA" -> Pour 1000 CFA investis, on récupère 2674 CFA | N196: =(C196-1)*1000 -> 2674.305896
B197: DRCI | C197: =N197+(-P197/(O197-P197)) ->  | D197: ="Le délai de récupération est de "&ROUNDDOWN(C197,0)&" ans et "&ROUNDDOWN((C197-ROUNDDOWN(C197,0))*12,0)&" mois" ->  | N197: =IF(AND(L189<0,L179<=H194),L179,IF(AND(K189<0,K179<=H194),K179,IF(AND(J189<0,J179<=H194),J179,IF(AND(I189<0,I179<=H194),I179,IF(AND(H189<0,H179<=H194),H179,IF(AND(G189<0,G179<=H194),G179,IF(AND(F189<0,F179<=H194),F179,IF(AND(E189<0,E179<=H194),E179,IF(AND(D189<0,D179<=H194),D179,IF(AND(C189<0,C179<=H194),C179)))))))))) -> FALSE | O197: =INDEX(C189:L189,MATCH(INDEX(C179:L179,MATCH(P197,C189:L189,0))+1,C179:L179,0)) ->  | P197: =IF(AND(L189<0,L179<=H194),L189,IF(AND(K189<0,K179<=H194),K189,IF(AND(J189<0,J179<=H194),J189,IF(AND(I189<0,I179<=H194),I189,IF(AND(H189<0,H179<=H194),H189,IF(AND(G189<0,G179<=H194),G189,IF(AND(F189<0,F179<=H194),F189,IF(AND(E189<0,E179<=H194),E189,IF(AND(D189<0,D179<=H194),D189,IF(AND(C189<0,C179<=H194),C189)))))))))) -> FALSE
B198: DSCR | C198: =(D180-D181)/(D183) -> 1.255203264

Sheet Remboursement Mensualités (hidden)
A1: Remboursement de prêt
A2: Taux annuel | B2: ='Table rentabilité'!D169 -> 0.07
A3: Capital emprunté | B3: ='Table rentabilité'!D168 -> 38587602
A4: Durée du prêt (en année) | B4: ='Table rentabilité'!D170 -> 4 | C4: =B4*12 -> 48
A5: Mensualité à régler | B5: =-PMT((1+B2)^(1/12)-1,B4*12,B3) -> 920183.4925 | C5: Formule mensualité | D5: =-VPM((1+B2)^(1/12)-1;B4*12;B3)
A7: Décomposition de la mensualité
A8: Remboursement du principal | B8: =-PPMT((1+B2)^(1/12)-1,1,B4*12,B3) -> 702003.5806 | C8: Formule principal | D8: =-PRINCPER((1+B2)^(1/12)-1;1;B4*12;B3)
A9: Remboursement des interêts | B9: =-IPMT((1+B2)^(1/12)-1,1,B4*12,B3) -> 218179.9119 | C9: Formule intérêt | D9: =-INTPER((1+B2)^(1/12)-1;1;B4*12;B3)
A12: Dans les formules ci-dessous Taux de période = TP = (1+$B$2)^(1/12)-1
A13: Périodes | B13: Mensualité | C13: Capital | D13: Intérêts | E13: Reste (ou résiduel) | F13: Années
A14: =IF(B4<>0,1,"-") -> 1 | B14: =IF(A14<>"-",C14+D14,"") -> 920183.4925 | C14: =IF(A14<>"-",-PPMT((1+$B$2)^(1/12)-1,A14,$B$4*12,$B$3),"") -> 702003.5806 | D14: =IF(A14<>"-",-IPMT((1+$B$2)^(1/12)-1,A14,$B$4*12,$B$3),"") -> 218179.9119 | E14: =IF(A14<>"-",$B$3+CUMPRINC((1+$B$2)^(1/12)-1,$B$4*12,$B$3,1,A14,0),"") -> 37885598.42 | F14: =IF(A14<>"-",1,"") -> 1 | G14: =IF(A14<>"-",1,"") -> 1
A15: =IF(AND($B$4<>0,A14<$C$4),A14+1,"-") -> 2 | B15: =IF(A15<>"-",C15+D15,"") -> 920183.4925 | C15: =IF(A15<>"-",-PPMT((1+$B$2)^(1/12)-1,A15,$B$4*12,$B$3),"") -> 705972.8109 | D15: =IF(A15<>"-",-IPMT((1+$B$2)^(1/12)-1,A15,$B$4*12,$B$3),"") -> 214210.6816 | E15: =IF(A15<>"-",$B$3+CUMPRINC((1+$B$2)^(1/12)-1,$B$4*12,$B$3,1,A15,0),"") -> 37179625.61 | F15: =IF(A15<>"-",IF(G14<G15,F14,F14+1),"") -> 1 | G15: =IF(A15="-","",IF(G14<12,G14+1,1)) -> 2
A16: =IF(AND($B$4<>0,A15<$C$4),A15+1,"-") -> 3 | B16: 920183.4925 | C16: 709964.4838 | D16: 210219.0086 | E16: 36469661.12 | F16: =IF(A16<>"-",IF(G15<G16,F15,F15+1),"") -> 1 | G16: =IF(A16="-","",IF(G15<12,G15+1,1)) -> 3
A17: 4 | B17: 920183.4925 | C17: 713978.7262 | D17: 206204.7662 | E17: 35755682.4 | F17: 1 | G17: 4
A18: 5 | B18: 920183.4925 | C18: 718015.6658 | D18: 202167.8267 | E18: 35037666.73 | F18: 1 | G18: 5
A19: 6 | B19: 920183.4925 | C19: 722075.4307 | D19: 198108.0617 | E19: 34315591.3 | F19: 1 | G19: 6
A20: 7 | B20: 920183.4925 | C20: 726158.1502 | D20: 194025.3423 | E20: 33589433.15 | F20: 1 | G20: 7
A21: 8 | B21: 920183.4925 | C21: 730263.9539 | D21: 189919.5385 | E21: 32859169.2 | F21: 1 | G21: 8
A22: 9 | B22: 920183.4925 | C22: 734392.9725 | D22: 185790.52 | E22: 32124776.23 | F22: 1 | G22: 9
A23: 10 | B23: 920183.4925 | C23: 738545.3372 | D23: 181638.1553 | E23: 31386230.89 | F23: 1 | G23: 10
A24: 11 | B24: 920183.4925 | C24: 742721.1799 | D24: 177462.3126 | E24: 30643509.71 | F24: 1 | G24: 11
A25: 12 | B25: 920183.4925 | C25: 746920.6334 | D25: 173262.8591 | E25: 29896589.07 | F25: 1 | G25: 12
A26: 13 | B26: 920183.4925 | C26: 751143.8313 | D26: 169039.6612 | E26: 29145445.24 | F26: 2 | G26: 1
A27: 14 | B27: 920183.4925 | C27: 755390.9077 | D27: 164792.5848 | E27: 28390054.34 | F27: 2 | G27: 2
A28: 15 | B28: 920183.4925 | C28: 759661.9977 | D28: 160521.4948 | E28: 27630392.34 | F28: 2 | G28: 3
A29: 16 | B29: 920183.4925 | C29: 763957.2371 | D29: 156226.2554 | E29: 26866435.1 | F29: 2 | G29: 4
A30: 17 | B30: 920183.4925 | C30: 768276.7624 | D30: 151906.7301 | E30: 26098158.34 | F30: 2 | G30: 5
A31: 18 | B31: 920183.4925 | C31: 772620.7109 | D31: 147562.7816 | E31: 25325537.63 | F31: 2 | G31: 6
A32: 19 | B32: 920183.4925 | C32: 776989.2207 | D32: 143194.2718 | E32: 24548548.41 | F32: 2 | G32: 7
A33: 20 | B33: 920183.4925 | C33: 781382.4307 | D33: 138801.0617 | E33: 23767165.98 | F33: 2 | G33: 8
A34: 21 | B34: 920183.4925 | C34: 785800.4806 | D34: 134383.0119 | E34: 22981365.5 | F34: 2 | G34: 9
A35: 22 | B35: 920183.4925 | C35: 790243.5108 | D35: 129939.9817 | E35: 22191121.99 | F35: 2 | G35: 10
A36: 23 | B36: 920183.4925 | C36: 794711.6625 | D36: 125471.83 | E36: 21396410.32 | F36: 2 | G36: 11
A37: 24 | B37: 920183.4925 | C37: 799205.0777 | D37: 120978.4147 | E37: 20597205.24 | F37: 2 | G37: 12
A38: 25 | B38: 920183.4925 | C38: 803723.8994 | D38: 116459.593 | E38: 19793481.35 | F38: 3 | G38: 1
A39: 26 | B39: 920183.4925 | C39: 808268.2712 | D39: 111915.2213 | E39: 18985213.07 | F39: 3 | G39: 2
A40: 27 | B40: 920183.4925 | C40: 812838.3375 | D40: 107345.1549 | E40: 18172374.74 | F40: 3 | G40: 3
A41: 28 | B41: 920183.4925 | C41: 817434.2437 | D41: 102749.2488 | E41: 17354940.49 | F41: 3 | G41: 4
A42: 29 | B42: 920183.4925 | C42: 822056.1357 | D42: 98127.35674 | E42: 16532884.36 | F42: 3 | G42: 5
A43: 30 | B43: 920183.4925 | C43: 826704.1606 | D43: 93479.33183 | E43: 15706180.2 | F43: 3 | G43: 6
A44: 31 | B44: 920183.4925 | C44: 831378.4662 | D44: 88805.02631 | E44: 14874801.73 | F44: 3 | G44: 7
A45: 32 | B45: 920183.4925 | C45: 836079.2009 | D45: 84104.29159 | E45: 14038722.53 | F45: 3 | G45: 8
A46: 33 | B46: 920183.4925 | C46: 840806.5142 | D46: 79376.97824 | E46: 13197916.02 | F46: 3 | G46: 9
A47: 34 | B47: 920183.4925 | C47: 845560.5565 | D47: 74622.93596 | E47: 12352355.46 | F47: 3 | G47: 10
A48: 35 | B48: 920183.4925 | C48: 850341.4788 | D48: 69842.01364 | E48: 11502013.98 | F48: 3 | G48: 11
A49: 36 | B49: 920183.4925 | C49: 855149.4332 | D49: 65034.05929 | E49: 10646864.55 | F49: 3 | G49: 12
A50: 37 | B50: 920183.4925 | C50: 859984.5724 | D50: 60198.92007 | E50: 9786879.974 | F50: 4 | G50: 1
A51: 38 | B51: 920183.4925 | C51: 864847.0502 | D51: 55336.44226 | E51: 8922032.924 | F51: 4 | G51: 2
A52: 39 | B52: 920183.4925 | C52: 869737.0212 | D52: 50446.47131 | E52: 8052295.903 | F52: 4 | G52: 3
A53: 40 | B53: 920183.4925 | C53: 874654.6407 | D53: 45528.85174 | E53: 7177641.262 | F53: 4 | G53: 4
A54: 41 | B54: 920183.4925 | C54: 879600.0652 | D54: 40583.42724 | E54: 6298041.197 | F54: 4 | G54: 5
A55: 42 | B55: 920183.4925 | C55: 884573.4519 | D55: 35610.04058 | E55: 5413467.745 | F55: 4 | G55: 6
A56: 43 | B56: 920183.4925 | C56: 889574.9588 | D56: 30608.53368 | E56: 4523892.786 | F56: 4 | G56: 7
A57: 44 | B57: 920183.4925 | C57: 894604.7449 | D57: 25578.74753 | E57: 3629288.042 | F57: 4 | G57: 8
A58: 45 | B58: 920183.4925 | C58: 899662.9702 | D58: 20520.52224 | E58: 2729625.071 | F58: 4 | G58: 9
A59: 46 | B59: 920183.4925 | C59: 904749.7955 | D59: 15433.69701 | E59: 1824875.276 | F59: 4 | G59: 10
A60: 47 | B60: 920183.4925 | C60: 909865.3823 | D60: 10318.11012 | E60: 915009.8935 | F60: 4 | G60: 11
A61: 48 | B61: 920183.4925 | C61: 915009.8935 | D61: 5173.598969 | E61: 0 | F61: 4 | G61: 12
A62: -
A63: -
A64: -
A65: -
A66: -
A67: -
A68: -
A69: -
A70: -
A71: -
A72: -
A73: -
A74: -
A75: -
A76: -
A77: -
A78: -
A79: - | B79: =IF(A79<>"-",C79+D79,"") ->  | C79: =IF(A79<>"-",-PPMT((1+$B$2)^(1/12)-1,A79,$B$4*12,$B$3),"") ->  | D79: =IF(A79<>"-",-IPMT((1+$B$2)^(1/12)-1,A79,$B$4*12,$B$3),"") ->  | E79: =IF(A79<>"-",$B$3+CUMPRINC((1+$B$2)^(1/12)-1,$B$4*12,$B$3,1,A79,0),"") -> 
A80: =IF(AND($B$4<>0,A79<$C$4),A79+1,"-") -> - | F80: =IF(A80<>"-",IF(G79<G80,F79,F79+1),"") ->  | G80: =IF(A80="-","",IF(G79<12,G79+1,1)) -> 
A81: -
A82: -
A83: -
A84: -
A85: -
A86: -
A87: -
A88: -
A89: -
A90: -
A91: -
A92: -
A93: -
A94: -
A95: -
A96: -
A97: -
A98: -
A99: -
A100: -
A101: -
A102: -
A103: -
A104: -
A105: -
A106: -
A107: -
A108: -
A109: -
A110: -
A111: -
A112: -
A113: -
A114: -
A115: -
A116: -
A117: -
A118: -
A119: -
A120: -
A121: -
A122: -
A123: -
A124: -
A125: -
A126: -
A127: -
A128: -
A129: -
A130: -
A131: -
A132: -
A133: -

Sheet investissement réel
B3: Désignation | C3: Quantité | D3: Prix unitaire TTC | E3: Montant Total TTC | F3: Durée de vie (an) | G3: Amortissement annuel
B4: Pompe solaires (55 KW) | C4: 1 | D4: 5824300 | E4: =C4*D4 -> 5824300 | F4: 10 | G4: =E4/F4 -> 582430
B5: accessoirs pompe | C5: 1 | D5: 2231250 | E5: 2231250 | F5: 10 | G5: 223125
B6: Champs solaire (81,9 KWc) | C6: 1 | D6: 17541678 | E6: 17541678 | F6: 25 | G6: 701667.12
B7: cloture grillage | C7: 1 | D7: 2493750 | E7: 2493750 | F7: 10 | G7: 249375
B8: Genie civil (structures modules) | C8: 1 | D8: 3187500 | E8: 3187500 | F8: 15 | G8: 212500
B9: conditionneur d'energie + protection | C9: 1 | D9: 3252999 | E9: 3252999 | F9: 10 | G9: 325299.9
B10: accessoirs cablages + protection | C10: 1 | D10: 3128125 | E10: =C10*D10 -> 3128125 | F10: 15 | G10: =E10/F10 -> 208541.6667
B11: ligne d'aspiration (PeHD) | C11: 1 | D11: 178000 | E11: =C11*D11 -> 178000 | F11: 20 | G11: =E11/F11 -> 8900
B12: ligne de refoulement (PeHD) | C12: 1 | D12: 750000 | E12: 750000 | F12: 20 | G12: 37500
E13: 0
E14: 0
E15: 0
E16: =C16*D16 -> 0
E17: 0
E18: 0
E19: 0
E20: 0
E21: =C21*D21 -> 0
E22: 0
B23: TOTAL (F CFA) | E23: =SUM(E4:E22) -> 38587602 | G23: =SUM(G4:G22) -> 2549338.687

Sheet Modèles envisagés (ex.arachide) (hidden)
B2: Analyse économique
B5: Contexte | D5: Les producteurs d'arachides sont dépendants du prix de rachat de leurs graines désormais fixé par l'Etat mais qui doit premettre à la filière de rester compétitive notamment face aux autres huiles importées
D6: Des intermédiaires ont envahis le marché, les opérateurs privés de stockage (OPS) qui achètent souvent à très bas prix les productions d'arachide qui doivent être écoulées (en-dessous du prix de l'Etat)
D7: La transformation artisanale de l'arachide brute en huile est en plein essor car elle permet de générer un revenu supplémentaire dans les bassins arachidiers
D8: La transformation de l'arachide en huile au niveau artisanal a souvent été freinée par des problèmes importants: impossibilité de stocker la production d'arachide, développement de maladies (aflatoxine notamment), concurrence élevée des industriels, etc.
B12: SWOT | D12: Forces | E12: > Potentiel de développement économique local important: augmentation nette des gains potentiels de revenus liés à la revente d'une huile brute pour la consommation locale. Avec un prix de vente situé entre le prix de l'huile brute à destination des raffineurs et de l'huile raffinée mise sur le marché (entre 800 et 1200 FCFA), le gain de CA par kilo d'arachide se situe entre 70 FCFA et 250 FCFA. > Qualité de l'huile brute peut être améliorée sensiblement avec les moyens techniques d'une presse solaire. Notamment pour lutter contre l'aflatoxine. L'ajout de filtres peut encore augmenter cette qualité et rapprocher le produit de l'huile raffinée. > la capacité de traitement de la presse solaire par rapport à la presse manuelle résout un certain nombre de problèmes liés au stockage de la graine | L12: Faiblesses | M12: > Le projet a des gains marginaux peu élevés. Sa rentabilité passe donc par un fonctionnement intensif et un apport important de matière première qui n'est pas garanti. Par ailleurs, sa durée d'amortissement peut être longue et une toute variation des prix sur le marché de l'arachide peut l'affecter durablement > Il n'existe pas de projets de référence similaires qui peuvent donner des indications claires sur la durabilité et la rentabilité de la solution
D13: Opportunités | E13: > Les transformateurs artisanaux d'huile d'arachide sont déjà nombreux et le métier n'est pas nouveau. L'exploitation de l'avantage comparatif de la technologie solaire pourra donc rapidement porter ses fruits > Il existe une demande locale d'huile d'arachide de meilleure qualité et économiquement attrayante: l'huile d'arachide est adaptée à la cuisine sénégalaise et la diminution des risques sanitaires la rendent à nouveau attrayante. | L13: Menaces | M13: > Le marché de l'huile d'arachide est un marché complexe: le challenge est économique plus que technologique. Les acteurs devront être accompagnés pour trouver les fournisseurs d'arachide et être capable de regrouper les productions et trouver les débouchés au niveau de la vente de l'huile brute. > Le marché est composé d'acteurs multiples et aux intérêts économiques importants. Le risque est élevé pour les bénéficiaires du projet de subir la concurrence aussi bien loyale des industriels et déloyale des OPS
B15: Modèles économiques
C18: Modèle 1 | K18: Modèle 2
C19: Business de transformation | K19: Business de transformation
C21: Intrant | D21: Graine décortiquée rachetée aux producteurs | K21: Intrant | L21: Graine non décortiquée rachetée aux producteurs
C22: Extrant | D22: Revente d'une l'huile non raffinée aux particuliers | K22: Extrant | L22: Revente d'une l'huile non raffinée aux particuliers
F24: Solution 1 | G24: Solution 2 | N24: Solution 1 | O24: Solution 2
C25: Nb presses | F25: 1 | G25: 2 | K25: Nb presses | N25: 1 | O25: 2
C26: Profitabilité | F26: 3ème année | G26: 1ère année | K26: Profitabilité | N26: 1ère année | O26: 1ère année
C27: Intrant arachide min (kg) | F27: 20,2 T | G27: 33,6 T | K27: Intrant arachide min (kg) | N27: 10,1 T | O27: 13,4 T
C28: Fonctionnement presse min (heures/jour) | F28: 12 | G28: 10 | K28: Fonctionnement presse min (heures/jour) | N28: 6 | O28: 4
C29: Prix achat arachide décortiquée maximum | F29: 375 | G29: 400 | K29: Prix achat arachide décortiquée maximum | N29: 220 | O29: 220
C30: Prix vente huile brute minimum | F30: 1000 | G30: 1000 | K30: Prix vente huile brute minimum | N30: 1000 | O30: 1000
C31: Prix de vente tourteaux minimum | F31: 200 | G31: 200 | K31: Prix de vente tourteaux minimum | N31: 200 | O31: 200
C32: Bénéfice min cumulé sur 5 ans | F32: 297672 | G32: 2395840 | K32: Bénéfice min cumulé sur 5 ans | N32: 1385014 | O32: 3016369
C33: Bénéfice min cumulé sur 9 ans | F33: 8653293.665 | G33: 16706237.69 | K33: Bénéfice min cumulé sur 9 ans | N33: 7186440.305 | O33: 11988417
C35: Alerte: | D35: Incapacité des petits producteurs à décortiquer | K35: Alerte: | L35: Nécessité d'acheter aux petits producteurs au prix fixé par l'Etat qui peut évoluer
D36: peut mener à privilégier la vente aux industriels? | L36: Prise en compte d'une évolution du prix dans le business model nécessaire
D37: Complexité business: fournisseurs + clients à trouver; gestion stocks
C41: Modèle 3 | K41: Modèle 4
C42: Business de service de transformation avec décortiqueuse | K42: Business mixte production avec décortiqueuse et service
C44: Intrant | D44: Aucun (producteur reste propriétaire d'arachide) | K44: Intrant | L44: Aucun (producteur reste propriétaire d'arachide)
C45: Extrant | D45: Service de pressage d'huile | K45: Extrant | L45: Service de pressage d'huile
F47: Solution 1 | G47: Solution 2 | N47: Solution 1 | O47: Solution 2
C48: Nb presses | F48: 1 | G48: 2 | K48: Nb presses | N48: 1 | O48: 2
C49: Profitabilité | F49: 1ère année | G49: 1ère année | K49: Profitabilité | N49: 1ère année | O49: 1ère année
C50: Intrant arachide min (kg) | F50: 13,4 T | G50: 23,5 T | K50: Intrant arachide min (kg) | N50: 13,4 T | O50: 16,8 T
C51: Fonctionnement presse min (heures/jour) | F51: 11 | G51: 7 | K51: Fonctionnement presse min (heures/jour) | N51: 8 | O51: 5
K52: Prix achat arachide décortiquée maximum | N52: 220 | O52: 220
C53: Prix prestation min | F53: 200 | G53: 200 | K53: Prix vente huile brute minimum | N53: 1000 | O53: 1000
C54: Bénéfice min cumulé sur 5 ans | F54: 1214862 | G54: 2265039 | K54: Prix prestation min | N54: 150 | O54: 150
C55: Bénéfice min cumulé sur 9 ans | F55: 7632052.638 | G55: 11477664.59 | K55: Bénéfice min cumulé sur 5 ans | N55: 683594 | O55: 1297217
K56: Bénéfice min cumulé sur 9 ans | N56: 6259903.818 | O56: 8804899.879
C58: Alerte: | D58: Grande incertitude sur la durée de fonctionnement de la machine relatif | K58: Alerte:
D59: à l'imprévisibilité de l'apport en graines
B64: Préconisations | D64: (1) La décortiqueuse semble clé pour permettre d'obtenir un projet rentable dans la durée, car elle permet d'augmenter la marge sur l'huile vendue
D65: (2) Choisir 2 pilotes complémentaires:
E66: a. Un pilote avec un modèle d'exploitation plus "simple" de type "service de transformation" (modèle 3 ou 4) avec des chances de réussite plus élevées
E67: b. Un pilote avec un modèle d'exploitation complexe (modèle 1 ou 2) qui sera un pilote plus risqué
D68: (3) Choisir comme cible des producteurs déjà impliqués dans la transformation de l'arachide en huile afin de simplifier l'approche business et augmenter les chancs de réussite du projet
D69: (4) Dans le cas d'un pilote complexe avec achat de l'arachide aux producteurs, favoriser un modèle tout intégré avec système de décortication solaire, qui permettra de générer un revenu marginal plus élevé
D70: (5) La performance du projet étant très dépendante de la productivité de la machine, l'entretien sera primordial pour limiter les pannes et arrêts de production: mettre en place un système d'épargne des amortissements
D71: pour financer les éventuels travaux. Ce système pourra être géré par un organisme partenaire (commune ou ONG locale).
